fUSD/lending_fUSD_20250228
["ID","MTS","AMOUNT","RATE_DAILY","PERIOD"]
[354861884,1740751847904,-251.02061696,0.00054794,120]
[354861885,1740751847914,-215.20572647,0.00054794,120]
[354861886,1740751847923,-500.0,0.00054794,120]
[354861887,1740751847936,-500.0,0.00054794,120]
[354861888,1740751847945,-495.0,0.00054794,120]
[354861889,1740751847955,-500.0,0.00054794,120]
[354861890,1740751847964,-500.0,0.00054794,120]
[354861891,1740751847974,-500.0,0.00054794,120]
[354861892,1740751847983,-566.58,0.00054794,120]
[354861893,1740751847995,-500.0,0.00054794,120]
[354861894,1740751848005,-500.0,0.00054794,120]
[354861895,1740751848015,-328.67137089,0.00054794,7]
[354861896,1740751848024,-2667.34,0.00054794,120]
[354861897,1740751848034,-1308.59,0.00054794,120]
[354861898,1740751848044,-500.0,0.00054794,120]
[354861899,1740751848054,-500.0,0.00054794,120]
[354861900,1740751848063,-500.0,0.00054794,120]
[354861901,1740751848073,-500.0,0.00054794,120]
[354861902,1740751848082,-500.0,0.00054794,120]
[354861903,1740751848092,-500.0,0.00054794,120]
[354861904,1740751848105,-153.03558,0.00054794,120]
[354861905,1740751848118,-151.0,0.00054794,120]
[354861906,1740751848128,-400.42792364,0.00054794,2]
[354861907,1740751848139,-338.22,0.00054794,120]
[354861908,1740751848149,-500.0,0.00054794,120]
[354861909,1740751848160,-591.97,0.00054794,120]
[354861910,1740751848171,-455.68217518,0.00054794,2]
[354861911,1740751848182,-470.7520935,0.00054794,120]
[354861912,1740751848424,-478.0,0.0004,5]
[354861913,1740751848434,-29.2479065,0.00054794,120]
[354861914,1740751848443,-500.0,0.00054794,120]
[354861915,1740751848454,-500.0,0.00054794,120]
[354861916,1740751848467,-193.45,0.00054794,120]
[354861917,1740751848476,-216.0,0.000548,54]
[354861918,1740751848490,-216.0,0.000548,54]
[354861919,1740751848502,-216.0,0.000548,54]
[354861920,1740751848512,-216.0,0.000548,54]
[354861921,1740751848523,-216.0,0.000548,54]
[354861922,1740751848533,-216.0,0.000548,54]
[354861923,1740751848544,-216.0,0.000548,54]
[354861924,1740751848554,-216.0,0.000548,54]
[354861925,1740751848563,-216.0,0.000548,54]
[354861926,1740751848573,-216.0,0.000548,54]
[354861927,1740751848584,-216.0,0.000548,54]
[354861928,1740751848594,-216.0,0.000548,54]
[354861929,1740751848604,-216.0,0.000548,54]
[354861930,1740751848613,-216.0,0.000548,54]
[354861931,1740751848623,-216.0,0.000548,54]
[354861932,1740751848633,-216.0,0.000548,54]
[354861933,1740751848642,-216.0,0.000548,54]
[354861934,1740751848652,-216.0,0.000548,54]
[354861935,1740751848662,-216.0,0.000548,54]
[354861936,1740751848672,-216.0,0.000548,54]
[354861937,1740751848681,-149.604609,0.000548,54]
[354861938,1740751848694,-66.395391,0.000548,54]
[354861939,1740751848703,-216.0,0.000548,54]
[354861940,1740751848713,-216.0,0.000548,54]
[354861941,1740751848722,-216.0,0.000548,54]
[354861942,1740751848732,-151.0,0.000548,120]
[354861943,1740751848745,-208.973299,0.000548,120]
[354861944,1740751848755,-151.0,0.000548,7]
[354861945,1740751848765,-151.0,0.000548,120]
[354861946,1740751848774,-151.0,0.000548,120]
[354861947,1740751848784,-151.0,0.000548,120]
[354861948,1740751848794,-151.0,0.000548,120]
[354861949,1740751848803,-151.0,0.000548,120]
[354861950,1740751848813,-1189.422564,0.000548,120]
[354861951,1740751848823,-1189.422564,0.000548,120]
[354861952,1740751848833,-151.0,0.000548,120]
[354861953,1740751848843,-209.08,0.00054852,120]
[354861954,1740751848854,-335.586948,0.00054899,90]
[354861955,1740751848866,-164.413052,0.00054899,90]
[354861956,1740751848876,-5020.07183786,0.000549,120]
[354861957,1740751848887,-151.0,0.000549,120]
[354861958,1740751848896,-151.631128,0.000549,120]
[354861959,1740751848910,-710.0,0.00055,5]
[354861960,1740751848921,-278.5218894,0.00055,120]
[354861961,1740751848931,-1740.76209274,0.00055121,15]
[354861962,1740751848943,-358.76661501,0.00055121,15]
[354861963,1740751848953,-295.31093867,0.00055317,60]
[354861964,1740751848963,-500.0,0.00055342,2]
[354861965,1740751848974,-164.81062499,0.00055342,2]
[354861966,1740751848983,-500.0,0.00055342,2]
[354861967,1740751848995,-259.39182133,0.00055342,2]
[354861968,1740751849160,-240.60817867,0.00055342,2]
[354861969,1740751849171,-151.0,0.00055342,120]
[354861970,1740751849181,-151.0,0.00055342,120]
[354861971,1740751849190,-61.64330134,0.00055342,7]
[354861972,1740751849202,-438.35669866,0.00055342,7]
[354861973,1740751849211,-79.27866134,0.00055342,120]
[354861976,1740752198550,1040.43,0.0001485,2]
[354861986,1740752827036,-500.0,0.00014999,2]
[354861987,1740752827068,-500.0,0.00014999,2]
[354861988,1740752827099,-530.90652964,0.00014999,2]
[354861989,1740752827132,-67469.09347036,0.00015,2]
[354862012,1740753032444,-896.23627101,0.0001489,2]
[354862013,1740753032456,-184.3070606,0.000149,2]
[354862014,1740753032478,-2112.70999097,0.000149,2]
[354862015,1740753032501,-456.49556275,0.0001499,2]
[354862016,1740753032513,-181.67,0.0001499,3]
[354862017,1740753032523,-212.53537916,0.0001499,2]
[354862018,1740753032534,-300.0,0.00014998,2]
[354862019,1740753032544,-1103.61368065,0.00014999,2]
[354862020,1740753032555,-1061.29224117,0.00014999,5]
[354862021,1740753032566,-571.63457075,0.00014999,2]
[354862022,1740753032577,-575.60945683,0.00015,2]
[354862023,1740753032624,-500.0,0.00014999,2]
[354862024,1740753032636,-2010.60206527,0.00015,2]
[354862025,1740753032823,-186655.3359637,0.00015,2]
[354862026,1740753032836,-1408.83669698,0.00015,2]
[354862027,1740753032851,-6701.23810362,0.00015,2]
[354862051,1740753038269,-16493.535734,0.00015,2]
[354862089,1740753040367,-1989.22692649,0.00015,2]
[354862090,1740753040532,-2177.0,0.00015,2]
[354862091,1740753040688,-260.256,0.00015,2]
[354862092,1740753040699,-722.1,0.00015,2]
[354862093,1740753040828,-6721.58379215,0.00015,2]
[354862105,1740753043782,-821.82400922,0.00015,2]
[354862109,1740753044691,-469774.00408967,0.00015,2]
[354862110,1740753044707,-1106.60310953,0.00015,2]
[354862143,1740753046643,-5042.400002,0.00015,2]
[354862145,1740753046741,-8220.3,0.00015,2]
[354862146,1740753046754,-818.7,0.00015,2]
[354862147,1740753046791,-16495.56709736,0.00015,2]
[354862148,1740753047034,-8200.00000001,0.00015,2]
[354862149,1740753047047,-603.86987937,0.00015,2]
[354862150,1740753047059,-1312.0,0.00015,2]
[354862184,1740753136404,500.0,0.00023,30]
[354862185,1740753136832,516.26135796,0.00023,30]
[354862186,1740753140183,518.89172062,0.00023,30]
[354862188,1740753514464,4334.403,0.000148,2]
[354862191,1740753764409,535.22464,0.0001485,2]
[354862193,1740753923866,159.61,0.00024712,30]
[354862194,1740753977393,846.27,0.00025,30]
[354862195,1740754014345,417.94581982,0.00014725,2]
[354862200,1740754097627,-300.0,0.00014899,2]
[354862201,1740754097652,-150.0,0.00014899,2]
[354862202,1740754097678,-450.0,0.000149,2]
[354862203,1740754097702,-289.55378329,0.000149,2]
[354862204,1740754097726,-2510.44621671,0.000149,2]
[354862208,1740754193879,-7550.39451357,0.000149,2]
[354862209,1740754193964,-3.49556972,0.000149,2]
[354862210,1740754194204,-1100.9791,0.000149,2]
[354862211,1740754194252,-727.0462,0.000149,2]
[354862212,1740754194302,-206.9849,0.000149,2]
[354862213,1740754194356,-3725.24490923,0.000149,2]
[354862224,1740754231626,-300.0,0.00014899,2]
[354862225,1740754231636,-1265.51600315,0.000149,2]
[354862226,1740754231649,-2113.28286315,0.000149,2]
[354862227,1740754231661,-4084.44455495,0.000149,2]
[354862228,1740754231671,-433.2518,0.000149,2]
[354862229,1740754231681,-1000.0,0.000149,2]
[354862230,1740754231691,-2406.30903065,0.000149,2]
[354862231,1740754231760,-22490.58219912,0.000149,2]
[354862232,1740754231773,-696.21782624,0.000149,2]
[354862233,1740754231784,-1934.44220194,0.000149,2]
[354862234,1740754231796,-322.14497255,0.000149,2]
[354862235,1740754231810,-199.52725721,0.000149,2]
[354862236,1740754231822,-151.99938769,0.00014973,2]
[354862237,1740754231831,-363.20213114,0.00014973,2]
[354862238,1740754231844,-500.0,0.00014973,2]
[354862239,1740754231854,-209.94934443,0.00014973,2]
[354862240,1740754231864,-501.93546082,0.00014973,2]
[354862241,1740754231875,-212.53537917,0.0001499,2]
[354862242,1740754231885,-1008.99495767,0.00014999,5]
[354862243,1740754231895,-500.0,0.00014999,2]
[354862244,1740754231906,-378.83789235,0.00014999,2]
[354862245,1740754231916,-165.18652464,0.00014999,2]
[354862246,1740754231926,-16079.916275,0.00015,2]
[354862247,1740754231938,-127062.2924448,0.00015,2]
[354862248,1740754231950,-1065.48037261,0.00015,2]
[354862249,1740754231961,-5196.42540613,0.00015,2]
[354862250,1740754231973,-548331.39429988,0.00015,2]
[354862251,1740754231988,-774.34181465,0.00015,2]
[354862252,1740754232006,-3019.7235829,0.00015,2]
[354862255,1740754232018,-3642.2941958,0.00015,2]
[354862256,1740754232030,-8248.5,0.00015,2]
[354862257,1740754232056,-10764.384,0.00015,2]
[354862370,1740754237560,-2111.95390531,0.0001499,2]
[354862371,1740754237570,-49635.58487902,0.00015,2]
[354862372,1740754237581,-6606.99749121,0.00015,2]
[354862373,1740754237593,-4131.42612,0.00015,2]
[354862374,1740754237604,-16538.0372,0.00015,2]
[354862375,1740754237623,-494.01,0.00015,2]
[354862376,1740754237634,-12000.0,0.00015,2]
[354862377,1740754237645,-83220.23351615,0.00015,2]
[354862378,1740754237863,-432.055,0.00015,2]
[354862379,1740754237875,-770.76998,0.00015,2]
[354862380,1740754237887,-5521.0,0.00015,2]
[354862381,1740754237898,-17230.4,0.00015,2]
[354862383,1740754237910,-105153.56682477,0.00015,2]
[354862517,1740754239711,-181.67,0.0001499,3]
[354862519,1740754239721,-120.5327,0.00015,2]
[354862525,1740754239777,-349.308,0.00015,2]
[354862527,1740754239789,-1347.85047613,0.00015,2]
[354862537,1740754239868,-2530.40000536,0.00015,2]
[354862553,1740754240018,-1263.675,0.00015,2]
[354862556,1740754240030,-4804.78195542,0.00015,2]
[354862558,1740754240042,-3868.87738001,0.00015,2]
[354862564,1740754240099,-7517.33278854,0.00015,2]
[354862567,1740754240111,-827.09088,0.00015,2]
[354862881,1740754242767,-1100.28966408,0.00015,2]
[354862888,1740754243752,-5143.7063757,0.00015,2]
[354862889,1740754243775,-469774.00408967,0.00015,2]
[354862890,1740754243787,-11526.77433729,0.00015,2]
[354862891,1740754243867,-510.45772296,0.00015,2]
[354862892,1740754243880,-2401.83631497,0.00015,2]
[354862893,1740754243894,-392.619,0.00015,2]
[354862894,1740754243975,-17.783564,0.00015,2]
[354862896,1740754245981,-717.8131,0.00014999,5]
[354862897,1740754246159,-343.47914117,0.00014999,5]
[354862898,1740754246171,-17230.39605882,0.00015,2]
[354862899,1740754246364,-6204.0,0.00015,2]
[354863016,1740754295119,520.0,0.00014825,2]
[354863017,1740754300999,337.44692,0.0001485,2]
[354863018,1740754344737,500.0,0.00023,30]
[354863019,1740754345108,500.0,0.00023,30]
[354863020,1740754347886,693.37564731,0.00023,30]
[354863021,1740754353020,194.80966566,0.000148,2]
[354863022,1740754354476,-1205.15026183,0.00014999,5]
[354863024,1740754383608,896.23627101,0.000148,2]
[354863027,1740754608570,446.02053,0.0001485,2]
[354863028,1740754669626,5274.7653,0.000148,2]
[354863031,1740755065953,162.0,0.00024712,30]
[354863035,1740755293764,1206.06139,0.0001485,2]
[354863036,1740755323338,-1000.0,0.00014899,2]
[354863037,1740755323390,-150.0,0.00014899,2]
[354863038,1740755323436,-300.0,0.00014899,2]
[354863039,1740755323484,-6073.97351469,0.000149,2]
[354863040,1740755323538,-5545.11166151,0.000149,2]
[354863041,1740755348344,-150.0,0.00014899,2]
[354863042,1740755348402,-158.29746647,0.000149,2]
[354863043,1740755348697,577.39347342,0.000148,2]
[354863062,1740755431917,-300.0,0.00014899,2]
[354863063,1740755431927,-45.903,0.000149,2]
[354863064,1740755432005,-1498.37856869,0.000149,2]
[354863065,1740755432017,-768.8155052,0.000149,2]
[354863066,1740755432029,-398.3222544,0.000149,2]
[354863067,1740755432077,-2934.23152342,0.000149,2]
[354863068,1740755432090,-8409.80870562,0.000149,2]
[354863069,1740755432099,-821.9253,0.000149,2]
[354863070,1740755432108,-1400.1997,0.000149,2]
[354863071,1740755432118,-1000.0,0.000149,2]
[354863072,1740755432128,-1685.1553,0.000149,2]
[354863073,1740755432137,-167.92700848,0.000149,2]
[354863074,1740755432147,-627.5679,0.000149,2]
[354863075,1740755432157,-3853.3389,0.000149,2]
[354863076,1740755432168,-267.1146,0.000149,2]
[354863077,1740755432183,-22554.278,0.000149,2]
[354863078,1740755432194,-3889.6839,0.000149,2]
[354863079,1740755432204,-11180.53263586,0.000149,2]
[354863080,1740755432214,-197.99476708,0.000149,2]
[354863081,1740755432226,-2039.22370611,0.000149,2]
[354863082,1740755432235,-6162.18816987,0.000149,2]
[354863083,1740755432245,-150.0,0.00014936,2]
[354863084,1740755432255,-500.0,0.00014973,2]
[354863085,1740755432265,-481.63,0.0001499,3]
[354863086,1740755432275,-205.46374287,0.0001499,2]
[354863087,1740755432285,-500.0,0.00014999,2]
[354863088,1740755432295,-366.817641,0.00014999,2]
[354863089,1740755432304,-435.0246704,0.00014999,2]
[354863090,1740755432314,-351.3136796,0.00014999,2]
[354863091,1740755432326,-620.85032072,0.00014999,2]
[354863092,1740755432337,-127543.70814891,0.00015,2]
[354863093,1740755432349,-149713.47967446,0.00015,2]
[354863094,1740755432368,-350.08956869,0.00015,2]
[354863095,1740755432387,-25047.52905561,0.00015,2]
[354863096,1740755432398,-481.36,0.00015,2]
[354863104,1740755437972,-864.04318,0.00015,2]
[354863105,1740755437988,-4000.38091507,0.00015,2]
[354863106,1740755437999,-16787.34677548,0.00015,2]
[354863165,1740755440128,-82497.0,0.00015,2]
[354863166,1740755440141,-1135.96567531,0.00015,2]
[354863167,1740755440155,-845.7172675,0.00015,2]
[354863168,1740755440168,-3351.02325804,0.00015,2]
[354863169,1740755440181,-1724.5432557,0.00015,2]
[354863170,1740755440194,-264.74333376,0.00015,2]
[354863171,1740755440369,-2177.6,0.00015,2]
[354863172,1740755440382,-8642.7505,0.00015,2]
[354863173,1740755440397,-7424.74241146,0.00015,2]
[354863174,1740755440409,-601.97702826,0.00015,2]
[354863175,1740755440420,-311.6,0.00015,2]
[354863176,1740755440432,-5777.84949516,0.00015,2]
[354863177,1740755440444,-2462.42460515,0.00015,2]
[354863178,1740755440456,-2721.7761327,0.00015,2]
[354863179,1740755440468,-864.80399718,0.00015,2]
[354863180,1740755440481,-5497.23759886,0.00015,2]
[354863211,1740755444116,-2441.49257263,0.00015,2]
[354863212,1740755444128,-337.27249606,0.00015,2]
[354863213,1740755444140,-17155.65647252,0.00015,2]
[354863214,1740755444155,-419.61,0.00015,2]
[354863215,1740755444166,-652.519868,0.00015,2]
[354863220,1740755446186,-124955.81259133,0.00015,2]
[354863221,1740755446196,-10200.6896727,0.00015,2]
[354863222,1740755446206,-4922.82929137,0.00015,2]
[354863223,1740755446216,-632193.27269163,0.00015,2]
[354863224,1740755446225,-2112.70999097,0.000153,2]
[354863225,1740755446239,-368.48194182,0.000154,2]
[354863226,1740755446248,-251.80330862,0.000156,2]
[354863227,1740755446258,-20839.8032623,0.00015878,2]
[354863228,1740755446267,-7998.495877,0.00015889,2]
[354863229,1740755446276,-680.0,0.000159,2]
[354863230,1740755446286,-420.0,0.00016308,2]
[354863231,1740755446295,-150.0,0.0001639,2]
[354863232,1740755446305,-450.0,0.0001639,2]
[354863233,1740755446315,-1206.0614,0.0001735,2]
[354863234,1740755446324,-587.0,0.0001785,2]
[354863235,1740755446334,-930.4,0.00018405,2]
[354863236,1740755446343,-200.0,0.00018901,2]
[354863237,1740755446352,-500.0,0.00019164,2]
[354863238,1740755446361,-150.0,0.00019333,7]
[354863239,1740755446370,-333.09,0.00019339,2]
[354863240,1740755446379,-9550.29,0.00019353,2]
[354863241,1740755446389,-527.14,0.00019428,2]
[354863242,1740755446398,-1852.42,0.0001944,2]
[354863243,1740755446407,-177.43,0.00019472,2]
[354863244,1740755446417,-11180.53263582,0.00019565,2]
[354863245,1740755446427,-2039.22370606,0.00019565,2]
[354863246,1740755446436,-184.61,0.00019708,2]
[354863247,1740755446446,-189.74,0.00019708,2]
[354863248,1740755446455,-1000.0,0.00019751,2]
[354863249,1740755446465,-291.22,0.00019765,2]
[354863250,1740755446475,-23940.51,0.00019778,2]
[354863251,1740755446487,-279.967,0.00019778,2]
[354863252,1740755446497,-279.967,0.00019778,2]
[354863253,1740755446507,-279.967,0.00019778,2]
[354863254,1740755446516,-279.967,0.00019778,2]
[354863255,1740755446526,-279.967,0.00019778,2]
[354863256,1740755446540,-279.967,0.00019778,2]
[354863257,1740755446556,-279.967,0.00019778,2]
[354863258,1740755446566,-279.967,0.00019778,2]
[354863259,1740755446580,-279.967,0.00019778,2]
[354863260,1740755446594,-279.967,0.00019778,2]
[354863261,1740755446604,-1206.0614,0.0001985,2]
[354863262,1740755446615,-307.3,0.00019871,2]
[354863263,1740755446625,-2000.0,0.00019871,2]
[354863264,1740755446635,-156.73,0.00019963,2]
[354863265,1740755446646,-1857.07,0.00019971,2]
[354863266,1740755446657,-307.3,0.00019975,2]
[354863267,1740755446668,-734.21,0.00019976,2]
[354863268,1740755446678,-250.0,0.00019998,2]
[354863269,1740755446688,-307.3,0.0002008,2]
[354863270,1740755446697,-255.0,0.000201,2]
[354863271,1740755446707,-262.26,0.000201,2]
[354863272,1740755446717,-8496.55736115,0.000201,2]
[354863273,1740755446726,-8496.55736091,0.000201,2]
[354863274,1740755446738,-8496.55736091,0.000201,2]
[354863275,1740755446748,-250.0,0.00020149,2]
[354863276,1740755446757,-307.3,0.00020185,2]
[354863277,1740755446767,-179.81,0.00020256,2]
[354863278,1740755446777,-307.3,0.00020289,2]
[354863279,1740755446786,-8667.01802274,0.0002032,2]
[354863280,1740755446801,-15232.98197726,0.0002032,2]
[354863281,1740755446811,-173.06,0.00020352,2]
[354863282,1740755446820,-157.8427041,0.00020373,2]
[354863283,1740755446830,-500.0,0.00020373,2]
[354863284,1740755446839,-8496.55736091,0.00020383,2]
[354863285,1740755446848,-307.3,0.00020394,2]
[354863286,1740755446858,-200.0,0.00020451,2]
[354863287,1740755446867,-307.3,0.00020498,2]
[354863288,1740755446877,-2000.0,0.00020559,2]
[354863290,1740755446886,-165.16,0.00020561,2]
[354863291,1740755446895,-307.3,0.00020603,2]
[354863292,1740755446905,-2000.0,0.00020661,4]
[354863293,1740755446914,-930.4,0.00020669,2]
[354863294,1740755446923,-8463.82,0.00020687,2]
[354863295,1740755446932,-307.3,0.00020707,2]
[354863296,1740755446942,-307.3,0.00020812,2]
[354863297,1740755446951,-282.4,0.00020816,2]
[354863298,1740755446961,-307.3,0.00020917,2]
[354863299,1740755446970,-282.4,0.00020925,2]
[354863300,1740755446980,-1167.32,0.00020988,2]
[354863301,1740755446992,-250.0,0.00021,2]
[354863302,1740755447001,-307.3,0.00021021,2]
[354863303,1740755447011,-282.4,0.00021035,2]
[354863304,1740755447020,-500.0,0.00021041,2]
[354863306,1740755447030,-307.3,0.00021126,2]
[354863308,1740755447039,-282.4,0.00021145,2]
[354863309,1740755447048,-307.3,0.0002123,2]
[354863310,1740755447057,-282.4,0.00021254,2]
[354863311,1740755447066,-307.3,0.00021335,2]
[354863312,1740755447075,-282.4,0.00021364,2]
[354863313,1740755447085,-156.73,0.00021388,2]
[354863315,1740755447094,-307.3,0.0002144,2]
[354863316,1740755447104,-282.4,0.00021473,2]
[354863317,1740755447113,-4508.21990184,0.0002152,2]
[354863318,1740755447122,-307.3,0.00021544,2]
[354863319,1740755447131,-282.4,0.00021583,2]
[354863320,1740755447141,-153.33,0.00021585,2]
[354863321,1740755447150,-307.3,0.00021649,2]
[354863322,1740755447159,-282.4,0.00021692,2]
[354863323,1740755447169,-7258.87380044,0.000217,2]
[354863324,1740755447178,-173.06,0.00021722,2]
[354863325,1740755447188,-311.81919355,0.00021739,2]
[354863326,1740755447197,-307.3,0.00021753,2]
[354863327,1740755447206,-500.0,0.00021783,2]
[354863328,1740755447216,-501.304969,0.00021783,2]
[354863329,1740755447225,-153.50239391,0.00021783,2]
[354863330,1740755447234,-500.0,0.00021783,2]
[354863331,1740755447246,-5434.0,0.000218,2]
[354863332,1740755447255,-282.4,0.00021802,2]
[354863333,1740755447265,-307.3,0.00021858,2]
[354863334,1740755447275,-177.43,0.00021906,2]
[354863335,1740755447284,-282.4,0.00021911,2]
[354863336,1740755447293,-200.0,0.00021933,2]
[354863337,1740755447303,-500.75586029,0.00022,2]
[354863338,1740755447312,-245.89655247,0.00022,2]
[354863339,1740755447322,-500.0,0.00022,2]
[354863340,1740755447331,-282.4,0.00022021,2]
[354863341,1740755447341,-230.43852764,0.0002211,2]
[354863342,1740755447350,-282.4,0.00022131,2]
[354863343,1740755447360,-8496.55736091,0.0002221,3]
[354863344,1740755447370,-1000.0,0.0002222,2]
[354863345,1740755447380,-282.4,0.0002224,2]
[354863346,1740755447390,-282.4,0.0002235,2]
[354863347,1740755447400,-1206.0614,0.0002235,2]
[354863348,1740755447410,-756.64974315,0.00022431,2]
[354863349,1740755447420,-282.4,0.00022459,2]
[354863350,1740755447429,-282.4,0.00022569,2]
[354863351,1740755447439,-282.4,0.00022678,2]
[354863352,1740755447449,-282.4,0.00022788,2]
[354863353,1740755447459,-156.73,0.00022814,2]
[354863354,1740755447468,-282.4,0.00022898,2]
[354863355,1740755447478,-930.4,0.00022933,2]
[354863356,1740755447489,-300.0,0.00023,2]
[354863357,1740755447499,-368.22735982,0.0002301,2]
[354863358,1740755447510,-21552.46173136,0.000232,2]
[354863359,1740755447550,-8326.22531713,0.000232,2]
[354863360,1740755447714,-307.65003376,0.000232,2]
[354863361,1740755447727,-520.0,0.000232,2]
[354863362,1740755447740,-6450.0,0.000232,2]
[354863363,1740755447808,-4909.98702396,0.000232,2]
[354863364,1740755549516,2210.0923234,0.000148,2]
[354863365,1740755620479,190.39316738,0.000148,2]
[354863372,1740756063920,162.0,0.00024712,30]
[354863375,1740756482276,672.71128176,0.0002063,120]
[354863376,1740756490786,305.61901993,9.9e-05,2]
[354863377,1740756507908,316.03253521,0.000136,2]
[354863441,1740756632108,-300.0,0.00014899,2]
[354863442,1740756632120,-150.0,0.00014899,2]
[354863443,1740756632134,-150.0,0.000149,2]
[354863444,1740756632144,-303.8836,0.000149,2]
[354863445,1740756632154,-331.93976439,0.000149,2]
[354863446,1740756632162,-13393.73453879,0.000149,2]
[354863447,1740756632174,-7292.78529393,0.000149,2]
[354863448,1740756632184,-324.03550378,0.000149,2]
[354863449,1740756632194,-554.64736192,0.000149,2]
[354863450,1740756632203,-546.9585,0.000149,2]
[354863451,1740756632212,-9759.0,0.00014959,2]
[354863452,1740756632222,-152.76074046,0.00014973,2]
[354863453,1740756632233,-505.37499363,0.00014973,2]
[354863454,1740756632242,-172.29997672,0.00014999,2]
[354863455,1740756632252,-500.0,0.00014999,2]
[354863456,1740756632262,-500.0,0.00014999,2]
[354863457,1740756632271,-500.0,0.00014999,2]
[354863458,1740756632282,-166.37868057,0.00014999,2]
[354863459,1740756632293,-343.47914117,0.00014999,5]
[354863460,1740756632303,-3019.04085286,0.00015,2]
[354863461,1740756632315,-2256.27754567,0.00015,2]
[354863462,1740756632347,-3282.33897135,0.00015,2]
[354863463,1740756632358,-2920.70703079,0.00015,2]
[354863464,1740756632370,-320.29041264,0.00015,2]
[354863465,1740756632382,-6808.06455774,0.00015,2]
[354863466,1740756632393,-588342.06496625,0.00015,2]
[354863467,1740756632411,-712.55367117,0.00015,2]
[354863468,1740756632423,-420.0723678,0.00015,2]
[354863469,1740756632435,-35880.0,0.00015,2]
[354863470,1740756632476,-84641.69093685,0.00015,2]
[354863514,1740756638097,-2111.95390531,0.0001499,2]
[354863515,1740756638107,-179.76523744,0.0001499,2]
[354863516,1740756638116,-14431.02129924,0.00015,2]
[354863517,1740756638128,-10744.92881354,0.00015,2]
[354863518,1740756638147,-22176.33472528,0.00015,2]
[354863519,1740756638159,-394.44710678,0.00015,2]
[354863520,1740756638171,-421.335,0.00015,2]
[354863521,1740756638298,-2545.50539138,0.00015,2]
[354863523,1740756638309,-910.04997864,0.00015,2]
[354863537,1740756640239,-4389.80000004,0.00015,2]
[354863538,1740756640334,-2024.4,0.00015,2]
[354863539,1740756640346,-2050.04921446,0.00015,2]
[354863540,1740756640359,-331.715,0.00015,2]
[354863541,1740756640371,-300.75060262,0.00015,2]
[354863542,1740756640561,-40320.73127353,0.00015,2]
[354863655,1740756644932,-75018.09120238,0.00015,2]
[354863656,1740756644943,-1671.19572,0.00015,2]
[354863657,1740756644973,-439.54667473,0.00015,2]
[354863658,1740756644985,-391.92024282,0.00015,2]
[354863659,1740756644998,-363.5,0.00015,2]
[354863684,1740756646497,-3737.21393219,0.00015,2]
[354863685,1740756646510,-534.12499856,0.00015,2]
[354863686,1740756646521,-1450.03721751,0.00015,2]
[354863687,1740756646533,-59239.27695929,0.00015,2]
[354863688,1740756646546,-7210.68214621,0.00015,2]
[354863689,1740756646557,-4032.08,0.00015,2]
[354863690,1740756646593,-552929.4204319,0.00015,2]
[354863691,1740756646686,-16732.17720452,0.00015,2]
[354863692,1740756646780,-10050.0,0.00015,2]
[354863693,1740756646973,-5184.96229997,0.00015,2]
[354863727,1740757109388,1379.669,0.000147,2]
[354863728,1740757109492,194.688,0.000147,2]